[Event "25th Nepal Championship 2025"]
[Site "Hetauda"]
[Date "2025.01.27"]
[Round "3.4"]
[White "Tandukar, Nabin"]
[Black "Maharjan, Prem Krishna"]
[Result "0-1"]
[Annotator "TA"]
[ECO "A27"]
[WhiteElo "1920"]
[BlackElo "1882"]
[PlyCount "107"]
[EventDate "2025.01.24"]
[EventType "tourn"]
[EventCountry "NEP"]
[SourceTitle "playchess.com"]
[Source "ChessBase"]
[SourceQuality "1"]
[TimeControl "5400+30"]

{[%evp 9,107,3,25,22,35,35,26,51,112,0,-2,-11,-8,0,0,-2,-6,-10,-2,2,-8,-24,-24,-28,-24,-84,-56,-57,-41,-143,-137,-177,-184,-249,-284,-285,-239,-243,-229,-234,-64,-185,-174,-145,-158,-335,70,-62,72,87,85,55,107,50,57,60,56,0,170,50,90,61,55,43,56,0,0,0,0,0,0,0,0,0,31,26,22,14,119,-71,-75,-929,-900,-29994,-29995,-29995,0,0,0,-29985,-29986,-29995,-29996,-29996,-29997,-29997,-29997,-29999,29999,-29997]} 1. c4 {[%emt 0:00:11]} e5 {[%emt 0:02:02]} 2. Nc3 {[%emt 0:00:13]} Nc6 {[%emt 0:00:18]} 3. Nf3 {[%emt 0:00:30]} Bc5 {[%emt 0:01:10]} 4. g3 {[%emt 0:00:22]} d6 {[%emt 0:00:48]} 5. Bg2 {[%emt 0:07:20]} a6 {[%emt 0:09:37]} 6. e3 {[%emt 0:00:15] A27: English Opening: Three Knights Variation.} Bg4 {[%emt 0:01:19]} 7. h3 {[%emt 0:00:55]} Bh5 {[%emt 0:00:32]} 8. O-O {[%emt 0:00:25] White has an edge.} (8. g4 $5 Bg6 $8 9. d4 $11) 8... f5 $146 {[%emt 0:01:16]} (8... Nge7 $14) (8... Ba7 9. b4 Nf6 10. b5 axb5 11. cxb5 Ne7 12. Qb3 O-O 13. d4 Bxf3 14. Bxf3 exd4 15. exd4 {0-1 Zwardon,V (2408)-Fedorchuk,S (2648) EU-ch rapid Katowice 2017 (7)}) 9. d3 {[%emt 0:04:36]} (9. d4 $16) 9... Nf6 $11 {[%emt 0:02:39]} 10. Qc2 {[%emt 0:04:36]} O-O {[%emt 0:02:11]} 11. a3 {[%emt 0:00:47] Against Nb4} Qd7 {[%emt 0:05:21]} 12. b4 {[%emt 0:00:36]} Ba7 {[%emt 0:02:38][%cal Of5f4]} 13. Rb1 {[%emt 0:03:40]} Kh8 {[%emt 0:03:24]} 14. Nh2 {[%emt 0:15:40]} Rae8 {[%emt 0:03:10][%cal Oe5e4]} 15. b5 {[%emt 0:01:54]} axb5 {[%emt 0:01:15]} 16. Rxb5 {[%emt 0:00:56]} Nd8 {[%emt 0:04:21]} 17. Qa4 {[%emt 0:08:31]} (17. Bd2 $11) 17... c6 {[%emt 0:07:38]} 18. Rb2 {[%emt 0:05:22]} Bc5 {[%emt 0:03:12][%cal Of5f4]} 19. Rd2 {[%emt 0:00:54]} (19. Qb3 $15) 19... Ne6 $1 $17 {[%emt 0:01:07]} 20. Qb3 {[%emt 0:01:20]} f4 {[%emt 0:02:48]} 21. gxf4 {[%emt 0:04:18]} (21. Rb2 $142) 21... exf4 $19 {[%emt 0:00:27]} 22. d4 {[%emt 0:00:43]} Ba7 {[%emt 0:03:19]} 23. Rb2 {[%emt 0:05:12]} Re7 {[%emt 0:03:23]} 24. Qa4 {[%emt 0:02:39] [#]} f3 $2 {[%emt 0:04:57]} 25. Nxf3 {[%emt 0:04:31]} ({Only move:} 25. Bxf3 $15 Bxf3 26. Nxf3) 25... Bxf3 {[%emt 0:00:44]} 26. Bxf3 {[%emt 0:01:08][%cal Of3g2]} Ng5 $1 {[%emt 0:01:17][%csl LRf3,LRh3]} 27. Bg2 {[%emt 0:07:30]} (27. Qd1 $17) 27... Bb8 $2 {[%emt 0:00:31]} (27... Nxh3+ $19 28. Kh1 Qg4) 28. f4 {[%emt 0:03:52]} (28. Kh2 $1 $14) 28... Nge4 {[%emt 0:06:52]} (28... Nxh3+ $15 {keeps the upper hand.} 29. Kh2 Ng4+ 30. Kg3 Nxe3 31. Bxh3 Nxf1+ 32. Bxf1 g5) 29. Nxe4 $16 {[%emt 0:01:28]} Nxe4 {[%emt 0:00:05]} 30. Qd1 {[%emt 0:02:27]} d5 {[%emt 0:05:14]} ({Black should play} 30... Ng3 $14) 31. cxd5 {[%emt 0:01:30]} (31. Qg4 $16) 31... Qxd5 {[%emt 0:01:48]} 32. Qb3 {[%emt 0:01:18]} Qf5 {[%emt 0:02:50]} 33. Qd1 {[%emt 0:01:28]} (33. Qc2 $14) 33... h5 $2 {[%emt 0:01:59] [#]} (33... Qd5 $11 {and Black has nothing to worry.}) 34. Rc2 {[%emt 0:01:36]} ({White should play} 34. Bxe4 $1 $18 Rxe4 35. Rg2) 34... Bd6 {[%emt 0:00:47]} 35. a4 {[%emt 0:03:44]} Rf6 {[%emt 0:00:31]} 36. Bxe4 {[%emt 0:01:47]} Rxe4 {[%emt 0:00:43]} 37. Rh2 {[%emt 0:01:07]} (37. Rg2 $14) 37... c5 {[%emt 0:04:02]} 38. d5 {[%emt 0:02:17]} Kh7 $40 {[%emt 0:01:12][%mdl 128] Black has some attack.} 39. Kh1 {[%emt 0:00:15]} Rg6 {[%emt 0:02:55]} 40. Rg1 {[%emt 0:00:44] Repels Rg3} Rxg1+ {[%emt 0:01:22]} 41. Kxg1 {[%emt 0:00:02]} Rb4 {[%emt 0:01:28]} 42. Bb2 {[%emt 0:00:48]} Re4 {[%emt 0:02:38]} 43. Rg2 {[%emt 0:00:34]} g6 {[%emt 0:01:32]} (43... Qxh3 $11 44. Qd3 (44. Bxg7 $2 Qxe3+ 45. Rf2 Qg3+ 46. Kf1 Qh3+ 47. Kg1 Kxg7 $19) (44. Rxg7+ Kh6 $11) 44... Qxe3+ 45. Qxe3 Rxe3) 44. Qb3 $2 {[%emt 0:00:27]} (44. Qb1 $16 {Rg5 would now be deadly.} Rxe3 45. Qxf5 gxf5 46. Rg7+ Kh6 47. Rxb7) 44... Qxh3 $17 {[%emt 0:01:30] Black attacks} 45. Qxb7+ $2 {[%emt 0:01:02][%mdl 8192]} (45. Be5 $17 Bxe5 (45... Rxe3 46. Qxb7+) 46. fxe5) 45... Re7 $19 {[%emt 0:00:03]} 46. Qa8 {[%emt 0:01:25]} Qxe3+ {[%emt 0:00:19]} 47. Rf2 {[%emt 0:00:11]} Qe1+ $2 {[%emt 0:02:09]} (47... Bxf4 48. Qh8#) (47... Qg3+ {mates} 48. Kf1 Qh3+ (48... Bxf4 49. Qh8#) 49. Rg2 Qh1+ (49... Bxf4 50. Qh8#) (49... Qf3+ 50. Kg1 Re1+ 51. Kh2 Bxf4+ 52. Rg3 Qxg3#) 50. Kf2 Qe1+ 51. Kf3 Re3#) 48. Kg2 $11 {[%emt 0:00:23][%csl Gb2][%cal Ra8h8]} Qe4+ {[%emt 0:00:52]} 49. Rf3 $2 {[%emt 0:00:24][%mdl 8192]} (49. Kg1 $11 Qb1+ (49... Bxf4 50. Qh8#) (49... Re8 50. Qb7+ Re7 51. Qa8 $11) 50. Kg2 Qe4+ 51. Kg1) 49... Qe2+ {[%emt 0:00:40]} (49... Bxf4 50. Qh8#) 50. Rf2 {[%emt 0:00:39]} Qg4+ {[%emt 0:00:49]} 51. Kf1 {[%emt 0:00:13]} Qh3+ {[%emt 0:00:04]} ({Inferior is} 51... Bxf4 52. Qh8#) 52. Rg2 {[%emt 0:00:19]} Qf3+ {[%emt 0:00:23]} 53. Rf2 {[%emt 0:01:56]} Qg4 $4 {[%emt 0:02:49][%mdl 8192]} (53... Qh1# {and life is good for Black.}) 54. Rf3 $4 {[%mdl 8192] Weighted Error Value: White=0.65/Black=0.57  Loses game:     	White=3     	Black=1      Missed win:     	---       	Black=2      Mistake:       	White=11    	Black=4      Inaccurate:     	White=3     	Black=3      OK:         	White=11    	Black=12     Best:        	---       	Black=4      Strong:       	---       	Black=1} 0-1

[Event "25th Nepal Championship 2025"]
[Site "Hetauda"]
[Date "2025.01.27"]
[Round "3.5"]
[White "Rajbhandari, Rijendra"]
[Black "Dahal, Sushrut"]
[Result "0-1"]
[Annotator "TA"]
[ECO "B80"]
[WhiteElo "2016"]
[BlackElo "2021"]
[PlyCount "94"]
[EventDate "2025.01.24"]
[EventType "tourn"]
[EventCountry "NEP"]
[SourceTitle "playchess.com"]
[Source "ChessBase"]
[SourceQuality "1"]
[TimeControl "5400+30"]

{[%evp 19,94,83,125,79,107,118,111,110,140,100,177,130,143,93,306,324,295,213,260,270,255,152,196,176,139,112,100,93,85,0,0,0,0,-41,-38,-38,-39,-83,-61,-125,-38,-143,-102,-106,-92,-84,-98,-140,-145,-131,-134,-170,-114,-233,-218,-212,-110,-102,-109,-255,-150,-194,-215,-205,-179,-174,0,-197,-136,-150,-162,-134,-113,-167,-109,-120,-78]} 1. e4 {[%emt 0:00:12]} c5 {[%emt 0:00:15]} 2. Nf3 {[%emt 0:00:10]} d6 {[%emt 0:00:25]} 3. d4 {[%emt 0:00:09]} cxd4 {[%emt 0:00:06]} 4. Nxd4 {[%emt 0:00:06]} e6 {[%emt 0:01:14]} 5. Nc3 {[%emt 0:00:24]} Nf6 {[%emt 0:00:50]} 6. Be3 {[%emt 0:00:09]} Be7 {[%emt 0:02:42]} 7. f3 {[%emt 0:00:49]} a6 {[%emt 0:09:54]} 8. Qd2 {[%emt 0:00:22]} Qc7 {[%emt 0:08:05]} 9. g4 {[%emt 0:02:32][%cal Bg2g4,Bg4g5][%mdl 32]} Nc6 {[%emt 0:06:09]} 10. O-O-O {[%emt 0:02:17]} Ne5 {[%emt 0:08:45]} 11. Kb1 {[%emt 0:03:25] B80: Sicilian Scheveningen: 6 g3 and 6 Be3, including English Attack.} (11. g5 Nh5 12. b3) 11... Nc4 {[%emt 0:05:32]} 12. Bxc4 {[%emt 0:00:07]} Qxc4 {[%emt 0:00:02]} 13. g5 {[%emt 0:09:54] White is better.} Nd7 {[%emt 0:03:59]} 14. f4 {[%emt 0:00:11][%cal Bf3f4,Bf4f5][%mdl 32]} Rb8 $146 {[%emt 0:04:49]} (14... b5 $16) (14... b5 15. Rhe1 b4 16. Na4 Rb8 17. f5 Ne5 18. f6 gxf6 19. gxf6 Bd8 20. Bf4 Qc7 21. Bxe5 dxe5 22. Nc6 Bxf6 23. Nxb8 Qxb8 24. Nc5 Be7 25. Nd3 a5 26. Qh6 {1-0 Svidler,P (2635)-Maksimenko,A (2550) YUG-chT Tivat 1995 (5)}) 15. h4 {[%emt 0:11:27]} ({White should try} 15. f5 $18 Ne5 16. Rhg1) 15... b5 $16 {[%emt 0:04:47][%cal Bb7b5,Bb5b4][%mdl 32]} 16. h5 {[%emt 0:01:37]} (16. f5 $142 b4 17. Na4) 16... Nb6 $2 {[%emt 0:01:55]} (16... Bb7 $16) 17. b3 $18 {[%emt 0:02:51]} Qc7 {[%emt 0:02:18]} 18. f5 {[%emt 0:10:31]} b4 {[%emt 0:04:26]} 19. Nce2 {[%emt 0:00:40]} e5 {[%emt 0:11:28] [#]} 20. Nf3 {[%emt 0:00:27]} (20. g6 $1 $18) 20... Bb7 {[%emt 0:03:54]} 21. Ng3 {[%emt 0:01:00][%cal Of5f6]} (21. Qxb4 Nc4 22. Ba7 (22. Qxc4 Qxc4 23. bxc4 Bxe4+ 24. Ka1 Bxf3 $17) (22. bxc4 $2 Bxe4 $19) 22... Ra8) 21... Nd7 {[%emt 0:04:49][%cal Bb6d7,Bd7f6,Bf6e4][%mdl 32]} 22. g6 {[%emt 0:11:17] Threatens to win with h6.} (22. Qxb4 d5 23. Qe1 d4 $14) 22... h6 {[%emt 0:04:56] White has space advantage and is better} 23. gxf7+ {[%emt 0:10:51]} (23. Qxb4 a5 24. gxf7+ Kxf7 $15) 23... Kxf7 {[%emt 0:00:02] [#]} 24. Nh4 {[%emt 0:00:09]} (24. Qxb4 Nf6 25. Bb6 Qc6 $19) (24. f6 $1 $16 {[%cal Rf6e7]} Nxf6 25. Qg2) 24... Nf6 $11 {[%emt 0:01:43]} 25. Ng6 {[%emt 0:00:27]} (25. Qxb4 $2 Bxe4 26. Qd2 Bxh1 27. Rxh1 Rhc8 $19) 25... Nxe4 {[%emt 0:01:07]} 26. Nxh8+ {[%emt 0:01:04]} (26. Nxe4 $5 Bxe4 27. Rh2 $17 (27. Nxh8+ Rxh8 28. Rh2 d5 $17)) 26... Rxh8 {[%emt 0:00:09]} 27. Nxe4 {[%emt 0:00:55]} (27. Qxb4 $2 Nxg3 28. Bb6 Qc6 $19) 27... Bxe4 {[%emt 0:00:05]} 28. Rh2 {[%emt 0:02:32]} d5 {[%emt 0:01:09][%cal Oh8c8][%mdl 1024] Black has strong compensation.} 29. Qe2 {[%emt 0:03:22]} (29. Rg1 $15) 29... Qc6 {[%emt 0:01:05]} (29... Rc8 $17 30. Rg1 Qc3 (30... Bxf5 $2 31. Rf2 $18)) 30. Qg4 {[%emt 0:00:46]} ({Only move:} 30. Rg1 $1 $15) 30... Rc8 {[%emt 0:00:31][%cal Re4c2]} 31. Qg6+ {[%emt 0:01:09]} Kf8 {[%emt 0:00:21] Dancing on a razor blade.} 32. Qxc6 {[%emt 0:07:40]} Rxc6 {[%emt 0:00:01]} 33. Rg1 {[%emt 0:00:08]} d4 $36 {[%emt 0:00:55][%mdl 2048] Black is really pushing.} (33... Bxf5 34. Rf2 Rf6 35. Bxh6 gxh6 36. Rgf1 $17) 34. Bc1 {[%emt 0:00:55]} Bf6 {[%emt 0:01:44][%cal Of8f7] Black is more active.} (34... Bxf5 35. Rf2 Rf6 36. Bxh6 Bxc2+ (36... gxh6 37. Rgf1 $17) 37. Rxc2 $15) 35. Re1 {[%emt 0:02:56]} Bf3 {[%emt 0:04:01]} (35... Bxf5 $19 36. Rf2 Bh7) 36. Bd2 {[%emt 0:00:06]} (36. Rf1 $17 e4 37. Bd2) 36... a5 $19 {[%emt 0:00:21]} 37. a3 {[%emt 0:00:57]} Rb6 {[%emt 0:00:51]} (37... bxa3 $19 38. Bxa5 e4 39. Bb4+ Kg8 (39... Be7 40. Bxe7+ Kxe7 41. Rg1 $17) 40. Bxa3 Be5 (40... e3 $2 41. Rf1 $19)) 38. axb4 {[%emt 0:00:08]} axb4 {[%emt 0:00:02]} 39. Rg1 {[%emt 0:03:27]} (39. Rf1 $17 Bg4 40. Kb2) 39... Kf7 {[%emt 0:00:25]} (39... Rb5 $19 {Threatens to win with ...e4.} 40. Be1 e4) 40. Be1 {[%emt 0:04:13]} e4 {[%emt 0:01:28]} 41. Bh4 {[%emt 0:00:39]} Be5 {[%emt 0:00:57]} (41... Bxh5 42. Bxf6 Rxf6 43. Rxh5 $18) 42. Bg3 {[%emt 0:00:33]} Bf6 {[%emt 0:01:04] A strong pair of Bishops.} 43. Bh4 $1 {[%emt 0:01:49]} e3 {[%emt 0:00:14]} (43... Bxh5 44. Bxf6 Rxf6 45. Rxh5 $18) (43... Rb5 $19 44. Bxf6 gxf6 (44... Kxf6 $2 45. Rg6+ Kxf5 46. Rxg7 $19)) 44. Bxf6 $17 {[%emt 0:02:35]} Rxf6 {[%emt 0:00:14]} (44... gxf6 $6 45. Rh3 Be2 46. Kb2 $11) 45. Rh4 {[%emt 0:00:09]} Rd6 {[%emt 0:00:34]} 46. Kc1 {[%emt 0:02:24]} (46. Rh3 $17 {keeps fighting.} Be4 47. Rhg3 Bxf5 48. Rxg7+ Ke6 49. Kc1) 46... d3 {[%emt 0:01:19]} ({Black should try} 46... Rd5 $19 47. Rf4 Bxh5) 47. cxd3 {[%emt 0:02:15]} Rxd3 {[%emt 0:00:00] Never resign too early!   Weighted Error Value: White=0.31/Black=0.39  Loses game:     	---       	Black=1      Mistake:       	White=9     	Black=7      Inaccurate:     	White=3     	Black=2      OK:         	White=10    	Black=11     Best:        	White=4     	Black=3      Strong:       	White=1     	---} 0-1

[Event "25th Nepal Championship 2025"]
[Site "Hetauda"]
[Date "2025.01.27"]
[Round "3.6"]
[White "Phuyal, Aashish"]
[Black "Thapa, Binay"]
[Result "1-0"]
[Annotator "TA"]
[ECO "B12"]
[WhiteElo "1981"]
[BlackElo "1688"]
[PlyCount "107"]
[EventDate "2025.01.24"]
[EventType "tourn"]
[EventCountry "NEP"]
[SourceTitle "playchess.com"]
[Source "ChessBase"]
[SourceQuality "1"]
[TimeControl "5400+30"]

{[%evp 9,107,11,37,44,44,44,73,37,74,51,76,49,47,19,11,0,48,-66,-61,-61,-15,-37,-10,-32,0,-23,-8,-33,-29,-73,0,0,-3,-53,59,36,81,71,91,92,153,102,91,85,82,58,111,52,80,46,122,88,202,72,108,39,187,174,162,83,73,58,89,48,140,142,117,64,110,107,111,134,90,65,63,75,69,0,0,0,43,0,177,147,130,0,18,17,45,56,121,114,293,279,6211,5818,29995,29996,29996,29997]} 1. e4 {[%emt 1:31:00]} c6 {[%emt 1:31:00]} 2. d4 {[%emt 0:00:30]} d5 {[%emt 0:00:30]} 3. e5 {[%emt 0:00:30]} Bf5 {[%emt 0:00:30]} 4. Nf3 {[%emt 0:00:30]} e6 {[%emt 0:00:30]} 5. Be2 {[%emt 0:00:30]} Bb4+ {[%emt 0:00:30]} 6. c3 {[%emt 0:00:30] B12: Caro-Kann: Advance Variation.} Ba5 {[%emt 0:00:30]} 7. O-O {[%emt 0:00:30]} Ne7 {[%emt 0:00:30]} 8. Nbd2 {[%emt 0:00:30] White is better.} Nd7 {[%emt 0:00:30]} 9. a4 {[%emt 0:00:30]} Bc7 {[%emt 0:00:30]} 10. Nb3 $146 {[%emt 0:00:30]} (10. Nh4 O-O 11. g4 Bg6 12. f4 f6 13. f5 Bf7 14. exf6 Nxf6 15. g5 Qd6 16. Rf2 {0-1 Shmallko,G-Rumiantsev,D (2254) Moscow-ch 1999 (7)}) 10... h6 {[%emt 0:00:30]} 11. Be3 {[%emt 0:00:30]} O-O {[%emt 0:00:30]} 12. Qd2 {[%emt 0:00:30]} Bg6 {[%emt 0:00:30]} (12... f6 $11) 13. Nc5 {[%emt 0:00:30]} (13. Nh4 $14) 13... Nxc5 $15 {[%emt 0:00:30]} 14. dxc5 {[%emt 0:00:30]} Nf5 {[%emt 0:00:30]} (14... Be4 $15) 15. Bf4 {[%emt 0:00:30]} b6 {[%emt 0:00:30]} 16. cxb6 {[%emt 0:00:30]} axb6 {[%emt 0:00:30]} 17. g4 {[%emt 0:00:30]} Ne7 {[%emt 0:00:30]} 18. Bg3 {[%emt 0:00:30]} c5 {[%emt 0:00:30]} 19. Bd3 {[%emt 0:00:30]} Qd7 {[%emt 0:00:30]} (19... Be4 $17 20. Qe3 Bxd3 21. Qxd3 c4) 20. Bb5 $11 {[%emt 0:00:30]} Qc8 {[%emt 0:00:30]} 21. b4 {[%emt 0:00:30]} (21. Nh4 $11) 21... c4 {[%emt 0:00:30]} (21... Bd8 $15) 22. Nd4 $14 {[%emt 0:00:30]} Bd3 {[%emt 0:00:30]} 23. Rfe1 {[%emt 0:00:30]} Qb8 {[%emt 0:00:30]} 24. Re3 {[%emt 0:00:30]} Nc8 {[%emt 0:00:30]} (24... Qc8 $142) 25. Rae1 {[%emt 0:00:30]} (25. Rxd3 $142 cxd3 26. Bxd3) 25... Na7 $16 {[%emt 0:00:30]} 26. Ba6 {[%emt 0:00:30]} Qe8 {[%emt 0:00:30]} 27. Qd1 {[%emt 0:00:30]} Rb8 {[%emt 0:00:30]} (27... Qd7 $14) 28. Kg2 {[%emt 0:00:30]} (28. Rxd3 $16 cxd3 29. Bxd3) 28... Bd8 {[%emt 0:00:30]} 29. h4 {[%emt 0:00:30]} Qd7 {[%emt 0:00:30]} (29... b5 $14) 30. Rh1 {[%emt 0:00:30]} g6 {[%emt 0:00:30]} (30... Be4+ $16 31. Rxe4 dxe4) 31. h5 {[%emt 0:00:30]} (31. Rxd3 $18 {is more deadly.} cxd3 32. h5 (32. Qxd3 Be7 $16) (32. Bxd3 Rc8 $18)) 31... g5 {[%emt 0:00:30]} 32. Rhe1 {[%emt 0:00:30]} (32. f4 $16) 32... Be7 {[%emt 0:00:30]} ({Black should play} 32... b5 $1 $14) 33. Rxd3 {[%emt 0:00:30]} cxd3 {[%emt 0:00:30]} 34. Bxd3 {[%emt 0:00:30]} (34. f4 $18) 34... Rfc8 {[%emt 0:00:30] Black is weak on the light squares} 35. Qd2 {[%emt 0:00:30][%mdl 1024] White has strong compensation.} Qd8 {[%emt 0:00:30]} (35... Qxa4 36. Bc2 Qa6 37. b5 $18) 36. Bb1 {[%emt 0:00:30] White has space advantage and is better White has more active pieces.} Qf8 {[%emt 0:00:30]} (36... Kh8 $1 $14) 37. Qd3 {[%emt 0:00:30]} Qg7 {[%emt 0:00:30] [#] Inhibits Qh7+.} 38. Re3 {[%emt 0:00:30]} (38. Nf5 $1 $16 {[%cal Rf5g7]} exf5 39. gxf5) 38... Rc7 {[%emt 0:00:30] [#]} (38... Kh8 $14 {might be stronger.}) 39. Nf5 $1 {[%emt 0:00:30][%mdl 512]} exf5 {[%emt 0:00:30]} 40. gxf5 {[%emt 0:00:30][%cal Of5f6] and f6! should not be overlooked} f6 {[%emt 0:00:30]} 41. exf6 {[%emt 0:00:30][%csl Of6] White has a strong passed pawn} Bxf6 {[%emt 0:00:30][%cal Ob8d8]} 42. Qxd5+ {[%emt 0:00:30]} (42. Bxc7 Qxc7 43. Qxd5+ Kg7 $11 (43... Kh8 44. Re6 $14)) 42... Kh8 {[%emt 0:00:30]} 43. Re6 {[%emt 0:00:30][%csl Oe6] Strong Square White (e6)} ({Better is} 43. Bxc7 $14 Qxc7 44. Re6 Qxc3 45. Qd7) 43... Rd7 {[%emt 0:00:30]} 44. Qe4 $36 {[%emt 0:00:30][%mdl 2048] White has the initiative.} Rf8 {[%emt 0:00:30]} 45. c4 {[%emt 0:00:30][%cal Og3d6]} Re7 $2 {[%emt 0:00:30]} (45... Nc8 $11 {and Black is okay.}) 46. c5 $18 {[%emt 0:00:30]} bxc5 {[%emt 0:00:30]} 47. bxc5 {[%emt 0:00:30]} (47. b5 $16) 47... Rxe6 {[%emt 0:00:30]} 48. fxe6 {[%emt 0:00:30]} Re8 {[%emt 0:00:30]} 49. a5 {[%emt 0:00:30]} Rc8 {[%emt 0:00:30]} (49... Qg8 $14) 50. Bd6 $16 {[%emt 0:00:30]} Nc6 $2 {[%emt 0:00:30]} (50... Re8 $16 {might work better.} 51. a6 g4) 51. a6 $18 {[%emt 0:00:30]} Be7 $2 {[%emt 0:00:30] [#]} (51... g4 52. Bc2 Bd4) 52. a7 $1 {[%emt 0:00:30][%cal Oe4c6][%mdl 512] Intending Qxc6! and mate.} Nxa7 {[%emt 0:00:30] [#]} (52... Rf8 53. Qxc6) 53. Be5 $1 {[%emt 0:00:30][%csl Gb1][%cal Re4h7] This pair of bishops is nice.} Bf6 {[%emt 0:00:30]} 54. Bxf6 {[%emt 0:00:30] Weighted Error Value: White=0.28 (precise) /Black=0.53  Loses game:     	---       	Black=2      Mistake:       	White=10    	Black=13     Inaccurate:     	White=7     	Black=9      OK:         	White=11    	Black=9      Best:        	White=5     	Black=5      Brilliant:      	White=1     	---} 1-0

[Event "25th Nepal Championship 2025"]
[Site "Hetauda"]
[Date "2025.01.27"]
[Round "4.1"]
[White "Silwal, Purushottam"]
[Black "Thapa, Binay"]
[Result "1-0"]
[Annotator "NA RC"]
[ECO "D42"]
[WhiteElo "2045"]
[BlackElo "1688"]
[PlyCount "91"]
[EventDate "2025.01.24"]
[EventType "tourn"]
[EventCountry "NEP"]
[SourceTitle "playchess.com"]
[Source "ChessBase"]
[SourceQuality "1"]
[TimeControl "5400+30"]

1. e4 {[%emt 0:00:01]} c6 {[%emt 0:00:02]} 2. d4 {[%emt 0:00:06]} d5 {[%emt 0:00:08]} 3. exd5 {[%emt 0:00:05]} cxd5 {[%emt 0:00:08]} 4. c4 {[%emt 0:00:04]} Nf6 {[%emt 0:00:30]} 5. Nc3 {[%emt 0:00:06]} e6 {[%emt 0:00:52]} 6. Nf3 {[%emt 0:00:06]} Be7 {[%emt 0:01:26]} 7. cxd5 {[%emt 0:03:39]} Nxd5 {[%emt 0:00:19]} 8. Bd3 {[%emt 0:00:23]} Nc6 {[%emt 0:04:17]} 9. O-O {[%emt 0:00:30]} Nxc3 {[%emt 0:00:14]} 10. bxc3 {[%emt 0:00:08]} Bf6 {[%emt 0:00:24]} 11. Re1 {[%emt 0:06:21]} O-O {[%emt 0:00:18]} 12. Bc2 {[%emt 0:01:09]} Ne7 {[%emt 0:04:42]} 13. Ba3 {[%emt 0:06:21]} Re8 {[%emt 0:00:48]} 14. Ne5 {[%emt 0:00:10]} Bxe5 {[%emt 0:00:46]} 15. dxe5 {[%emt 0:03:09]} Qa5 {[%emt 0:06:17]} 16. Bb4 {[%emt 0:01:04]} Qc7 {[%emt 0:03:43]} 17. Qd3 {[%emt 0:03:40]} g6 {[%emt 0:02:05]} 18. Ba4 {[%emt 0:09:14]} Nc6 {[%emt 0:00:23]} 19. Bd6 {[%emt 0:00:30]} Qa5 {[%emt 0:04:21]} 20. Bb3 {[%emt 0:14:08]} b5 {[%emt 0:01:55]} 21. h4 {[%emt 0:00:59]} Bb7 {[%emt 0:01:10]} 22. a4 {[%emt 0:00:59]} b4 {[%emt 0:05:13]} 23. c4 {[%emt 0:14:22]} Rad8 {[%emt 0:03:06]} 24. Rad1 {[%emt 0:00:18]} Rd7 {[%emt 0:00:47]} 25. c5 {[%emt 0:00:56]} Qd8 {[%emt 0:00:57]} 26. Qg3 {[%emt 0:00:39]} Ne7 {[%emt 0:00:50]} 27. h5 {[%emt 0:02:29]} Nf5 {[%emt 0:01:53]} 28. Qf4 {[%emt 0:00:06]} Qh4 {[%emt 0:01:05]} 29. Qxh4 {[%emt 0:00:10]} Nxh4 {[%emt 0:00:18]} 30. f3 {[%emt 0:00:06]} a5 {[%emt 0:00:39]} 31. Bc4 {[%emt 0:00:08]} Bc6 {[%emt 0:00:15]} 32. Bb5 {[%emt 0:00:14]} Rc8 {[%emt 0:03:02]} 33. Rc1 {[%emt 0:02:04]} Nf5 {[%emt 0:01:29]} 34. Kf2 {[%emt 0:00:42]} Nd4 {[%emt 0:01:13]} 35. hxg6 {[%emt 0:01:25]} hxg6 {[%emt 0:00:23]} 36. Rc4 {[%emt 0:05:02]} Nxb5 {[%emt 0:01:00]} 37. axb5 {[%emt 0:00:08]} Bxb5 {[%emt 0:00:27]} 38. Rh4 {[%emt 0:00:09]} Rdd8 {[%emt 0:04:45]} 39. Reh1 {[%emt 0:00:18]} g5 {[%emt 0:00:31]} 40. Rh5 {[%emt 0:02:07]} Bd3 {[%emt 0:00:39]} 41. Be7 {[%emt 0:00:23]} f6 {[%emt 0:05:09]} 42. Bxd8 {[%emt 0:00:34]} Rxc5 {[%emt 0:00:47]} 43. Bxf6 {[%emt 0:00:14]} Rc2+ {[%emt 0:01:48]} 44. Kg3 {[%emt 0:00:09]} Rc4 {[%emt 0:03:02]} 45. Rxg5+ {[%emt 0:00:08]} Kf7 {[%emt 0:00:28]} 46. Rg7+ {[%emt 0:00:04]} 1-0